Workbook

Sheet Cover
I2: Hubbard Decision Research 2S410 Canterbury Ct Glen Ellyn, IL 60137 www.hubbardresearch.com
E5: Table of Contents for Examples for Measurement
E7: 1) Controlled Experiment Example from Chapter 3 2) Irrational Belief in Small Samples from Chapter 7 3) Survey Example using a Normal Distribution from Chapter 10 4) Beta Distribution Population Proportion Example Chapter 12

Sheet Comparing Risks
A1: The Drug Company Experiment Example: The Difference Between Population Proportions (Chapter 3)
A2: This worksheet explains the example in Chapter 3 of a hypothetical major experiment in the pharmacutical industry. The problem was to compare the outcomes of different risk management approaches to determine if risks actually decreased. The event being observed is fairly rare so a large number of samples were needed to determine if a reduction in risk really happened. This is a standard problem in statistics where we need to compare the observed proportions between two groups. We could apply this to determining whether the number of customers complained under one policy or another. In this case we are trying to determine if the difference between the number of acccidents in two groups was just chance of if the risk management method can really be credited for it.
B4: Number of incidents | C4: Number of Samples | D4: Proportion
A5: Control Group (Where new risk management methods were not used) | B5: 12 | C5: 100 | D5: =B5/C5 -> 0.12
A6: Test Group (Where new risk management methods were used) | B6: 4 | C6: =C5 -> 100 | D6: =B6/C6 -> 0.04
A7: Difference between the proportions | D7: =D5-D6 -> 0.08
A8: Standard error of the difference between the proportions. For now, just know that this quantity is like a unit of measure for how much uncertainty we have from these random samples. | D8: =(D5*(1-D5)/C5+D6*(1-D6)/C6)^0.5 -> 0.03794733192
A9: Chance the difference in proportions could just be a coincidence. Given how much uncertainty we have from the random sample, this shows us the likelihood that the result was an accident. | D9: =NORMDIST(0,D7,D8,1) -> 0.01750749051

Sheet Small Samples
A1: An Example of Irrational Belief in Small Numbers (Chapter 7)
A2: This is the problem in the book about the a pharmacutical manufacturer evaluating production methods of an overseas supplier. There were two possible production methods used. Historically, the preferred production method produced a batch acceptance rate of 70%. A cheaper production method produced a batch acceptance rate of only 30%. There are currently two suppliers being used, one with more total batches produced. The question is, based on the rate of batch acceptance, which of the suppliers is more likely to be using the preferred production method? Although many people might believe that Supplier B has a better acceptance rate (although it has fewer batches in total, it has rejected none of them), the two suppliers have exactly the same probability of using the preferred method. Sample size affects this calculation. This assumes that either production method is equally likely at first.
A4: Assumptions
B5: Batch acceptance rate with given method | C5: Initial probability that given method is used
A7: Good Method | B7: 0.7 | C7: 0.5
A8: Bad Method | B8: 0.3 | C8: =1-C7 -> 0.5
A10: Comparison of Suppliers - Who is more likely to be using the preferred method?
B11: Supplier A | C11: Supplier B
A12: Total number of batches from this supplier to date (including both accepted and rejected) | B12: 12 | C12: 4
A13: Number of batches that were rejected | B13: 4 | C13: 0
A14: Probability of observing this result if the preferred method is used | B14: =BINOMDIST(B12-B13,B12,B7,0) -> 0.2311396961 | C14: =BINOMDIST(C12-C13,C12,B7,0) -> 0.2401
A15: Probability of observing this result if cheaper method is used | B15: =BINOMDIST(B12-B13,B12,B8,0) -> 0.007797715695 | C15: =BINOMDIST(C12-C13,C12,B8,0) -> 0.0081
A16: Overall probability of observing this result - this is is the weighted average of the two probabilities above given our assumptions about the initial likelihood of each | B16: =C7*B14+C8*B15 -> 0.1194687059 | C16: =C14*C7+C8*C15 -> 0.1241
A17: Probability that prefered method is used | B17: =C7*B14/B16 -> 0.9673650282 | C17: =C7*C14/C16 -> 0.9673650282
A18: Probability that bad method is used | B18: =1-B17 -> 0.0326349718 | C18: =1-C17 -> 0.0326349718

Sheet Survey with Normal Dist
A1: Normal Distribution Illustration (Chapter 10)
A2: The "Normal" distribution, also known as the Guasian distribution. If you enter the mean and standard deviation of an estimated value, this spreadsheet will compute the probability that the true value is below an amount you want to check against. The values are currently set to show the lower bound of the example in the book on page 182. But you can change these values and see how the chart changes.
A4: Variables and Estimates
A5: Mean | E5: 25
A6: Standard Deviation | E6: 2
A7: The number of standard deviations the lower bound is from the mean. Note that a negative value here means it is below mean. The standard deviations for the upper bound would be the same number but a positve value. | E7: =NORMINV(E10,0,1) -> -1.644853627
A8: The upper bound from the example in the book. | E8: =E5-E6*E7 -> 28.28970725
A9: The lower bound from the example in the book. | E9: =E5+E7*E6 -> 21.71029275
A10: The probability that the value is below the lower bound. If you change this value, you will see the chart below change so that you get a sense of how different probabilities look on a normal distribution. | E10: 0.05
A11: The probability that the value is above the lower bound. | E11: =1-E10 -> 0.95
A14: Percentile | B14: Standard Normal | C14: Weight Below | D14: Weight Above | G14: The size of the area in blue shows the probability (shown in row 7) that the estimated value is below the given amount (in this case, the lower bound of a range)
A15: -5 | B15: =NORMDIST(A15,0,1,1) -> 2.866515719e-07
A16: -4.99 | B16: =NORMDIST(A16,0,1,1) -> 3.018964625e-07 | C16: =IF(A16<E$7,B16-B15,0) -> 1.524489064e-08 | D16: =IF(A16>=E$7,B16-B15,0) -> 0
A17: -4.98 | B17: =NORMDIST(A17,0,1,1) -> 3.179213662e-07 | C17: 1.602490366e-08 | D17: 0
A18: -4.97 | B18: =NORMDIST(A18,0,1,1) -> 3.347645083e-07 | C18: 1.684314209e-08 | D18: 0
A19: -4.96 | B19: 3.524658982e-07 | C19: 1.77013899e-08 | D19: 0
A20: -4.95 | B20: 3.71067408e-07 | C20: 1.860150979e-08 | D20: 0
A21: -4.94 | B21: 3.906128543e-07 | C21: 1.954544635e-08 | D21: 0
A22: -4.93 | B22: 4.111480838e-07 | C22: 2.053522953e-08 | D22: 0
A23: -4.92 | B23: 4.327210619e-07 | C23: 2.157297802e-08 | D23: 0
A24: -4.91 | B24: 4.553819648e-07 | C24: 2.266090298e-08 | D24: 0
A25: -4.9 | B25: 4.791832766e-07 | C25: 2.380131175e-08 | D25: 0
A26: -4.89 | B26: 5.041798884e-07 | C26: 2.499661177e-08 | D26: 0
A27: -4.88 | B27: 5.30429203e-07 | C27: 2.624931462e-08 | D27: 0
A28: -4.87 | B28: 5.579912432e-07 | C28: 2.756204023e-08 | D28: 0
A29: -4.86 | B29: 5.869287645e-07 | C29: 2.893752126e-08 | D29: 0
A30: -4.85 | B30: 6.17307372e-07 | C30: 3.037860754e-08 | D30: 0
A31: -4.84 | B31: 6.491956429e-07 | C31: 3.188827085e-08 | D31: 0
A32: -4.83 | B32: 6.826652526e-07 | C32: 3.34696097e-08 | D32: 0
A33: -4.82 | B33: 7.177911069e-07 | C33: 3.512585439e-08 | D33: 0
A34: -4.81 | B34: 7.546514791e-07 | C34: 3.68603722e-08 | D34: 0
A35: -4.8 | B35: 7.93328152e-07 | C35: 3.867667283e-08 | D35: 0
A36: -4.79 | B36: 8.339065659e-07 | C36: 4.057841395e-08 | D36: 0
A37: -4.78 | B37: 8.764759729e-07 | C37: 4.256940701e-08 | D37: 0
A38: -4.77 | B38: 9.211295962e-07 | C38: 4.465362324e-08 | D38: 0
A39: -4.76 | B39: 9.67964796e-07 | C39: 4.683519987e-08 | D39: 0
A40: -4.75 | B40: 1.017083243e-06 | C40: 4.911844654e-08 | D40: 0
A41: -4.74 | B41: 1.068591095e-06 | C41: 5.150785198e-08 | D41: 0
A42: -4.73 | B42: 1.122599185e-06 | C42: 5.400809089e-08 | D42: 0
A43: -4.72 | B43: 1.179223217e-06 | C43: 5.662403108e-08 | D43: 0
A44: -4.71 | B44: 1.238583957e-06 | C44: 5.936074084e-08 | D44: 0
A45: -4.7 | B45: 1.300807454e-06 | C45: 6.222349656e-08 | D45: 0
A46: -4.69 | B46: 1.366025245e-06 | C46: 6.521779069e-08 | D46: 0
A47: -4.68 | B47: 1.434374584e-06 | C47: 6.834933981e-08 | D47: 0
A48: -4.67 | B48: 1.505998678e-06 | C48: 7.162409318e-08 | D48: 0
A49: -4.66 | B49: 1.581046919e-06 | C49: 7.504824137e-08 | D49: 0
A50: -4.65 | B50: 1.659675144e-06 | C50: 7.86282254e-08 | D50: 0
A51: -4.64 | B51: 1.74204589e-06 | C51: 8.237074597e-08 | D51: 0
A52: -4.63 | B52: 1.828328664e-06 | C52: 8.628277318e-08 | D52: 0
A53: -4.62 | B53: 1.91870022e-06 | C53: 9.037155645e-08 | D53: 0
A54: -4.61 | B54: 2.013344855e-06 | C54: 9.464463484e-08 | D54: 0
A55: -4.6 | B55: 2.112454703e-06 | C55: 9.910984769e-08 | D55: 0
A56: -4.59 | B56: 2.216230048e-06 | C56: 1.037753456e-07 | D56: 0
A57: -4.58 | B57: 2.32487965e-06 | C57: 1.086496018e-07 | D57: 0
A58: -4.57 | B58: 2.438621074e-06 | C58: 1.137414238e-07 | D58: 0
A59: -4.56 | B59: 2.557681039e-06 | C59: 1.190599657e-07 | D59: 0
A60: -4.55 | B60: 2.68229578e-06 | C60: 1.246147402e-07 | D60: 0
A61: -4.54 | B61: 2.812711412e-06 | C61: 1.304156321e-07 | D61: 0
A62: -4.53 | B62: 2.949184323e-06 | C62: 1.364729112e-07 | D62: 0
A63: -4.52 | B63: 3.091981569e-06 | C63: 1.427972461e-07 | D63: 0
A64: -4.51 | B64: 3.241381287e-06 | C64: 1.493997184e-07 | D64: 0
A65: -4.5 | B65: 3.397673125e-06 | C65: 1.562918374e-07 | D65: 0
A66: -4.49 | B66: 3.56115868e-06 | C66: 1.634855549e-07 | D66: 0
A67: -4.48 | B67: 3.732151961e-06 | C67: 1.709932809e-07 | D67: 0
A68: -4.47 | B68: 3.91097986e-06 | C68: 1.788278998e-07 | D68: 0
A69: -4.46 | B69: 4.097982647e-06 | C69: 1.870027864e-07 | D69: 0
A70: -4.45 | B70: 4.29351447e-06 | C70: 1.955318233e-07 | D70: 0
A71: -4.44 | B71: 4.497943889e-06 | C71: 2.044294186e-07 | D71: 0
A72: -4.43 | B72: 4.711654412e-06 | C72: 2.137105233e-07 | D72: 0
A73: -4.42 | B73: 4.935045063e-06 | C73: 2.233906506e-07 | D73: 0
A74: -4.41 | B74: 5.168530957e-06 | C74: 2.334858947e-07 | D74: 0
A75: -4.4 | B75: 5.412543908e-06 | C75: 2.440129505e-07 | D75: 0
A76: -4.39 | B76: 5.667533042e-06 | C76: 2.549891341e-07 | D76: 0
A77: -4.38 | B77: 5.933965446e-06 | C77: 2.664324038e-07 | D77: 0
A78: -4.37 | B78: 6.212326827e-06 | C78: 2.783613813e-07 | D78: 0
A79: -4.36 | B79: 6.503122201e-06 | C79: 2.907953741e-07 | D79: 0
A80: -4.35 | B80: 6.806876599e-06 | C80: =IF(A80<E$7,B80-B79,0) -> 3.037543983e-07 | D80: =IF(A80>=E$7,B80-B79,0) -> 0
A81: -4.34 | B81: =NORMDIST(A81,0,1,1) -> 7.124135801e-06 | C81: 3.172592022e-07 | D81: 0
A82: -4.33 | B82: 7.455467091e-06 | C82: 3.313312899e-07 | D82: 0
A83: -4.32 | B83: 7.801460038e-06 | C83: 3.459929467e-07 | D83: 0
A84: -4.31 | B84: 8.162727303e-06 | C84: 3.612672647e-07 | D84: 0
A85: -4.3 | B85: 8.539905471e-06 | C85: 3.771781682e-07 | D85: 0
A86: -4.29 | B86: 8.933655913e-06 | C86: 3.937504418e-07 | D86: 0
A87: -4.28 | B87: 9.34466567e-06 | C87: 4.110097574e-07 | D87: 0
A88: -4.27 | B88: 9.773648373e-06 | C88: 4.289827027e-07 | D88: 0
A89: -4.26 | B89: 1.022134518e-05 | C89: 4.476968111e-07 | D89: 0
A90: -4.25 | B90: 1.068852577e-05 | C90: 4.67180591e-07 | D90: 0
A91: -4.24 | B91: 1.117598933e-05 | C91: 4.874635572e-07 | D91: 0
A92: -4.23 | B92: 1.168456559e-05 | C92: 5.085762626e-07 | D92: 0
A93: -4.22 | B93: 1.221511593e-05 | C93: 5.305503305e-07 | D93: 0
A94: -4.21 | B94: 1.276853441e-05 | C94: 5.534184885e-07 | D94: 0
A95: -4.2 | B95: 1.334574902e-05 | C95: 5.772146022e-07 | D95: 0
A96: -4.19 | B96: 1.394772273e-05 | C96: 6.01973711e-07 | D96: 0
A97: -4.18 | B97: 1.457545479e-05 | C97: 6.27732064e-07 | D97: 0
A98: -4.17 | B98: 1.522998195e-05 | C98: 6.545271571e-07 | D98: 0
A99: -4.16 | B99: 1.591237972e-05 | C99: 6.823977711e-07 | D99: 0
A100: -4.15 | B100: 1.662376373e-05 | C100: 7.113840106e-07 | D100: 0
A101: -4.14 | B101: 1.736529107e-05 | C101: 7.41527344e-07 | D101: 0
A102: -4.13 | B102: 1.813816172e-05 | C102: 7.728706445e-07 | D102: 0
A103: -4.12 | B103: 1.894361995e-05 | C103: 8.054582324e-07 | D103: 0
A104: -4.11 | B104: 1.978295587e-05 | C104: 8.393359177e-07 | D104: 0
A105: -4.1 | B105: 2.065750691e-05 | C105: 8.745510443e-07 | D105: 0
A106: -4.09 | B106: 2.156865945e-05 | C106: 9.111525356e-07 | D106: 0
A107: -4.08 | B107: 2.251785039e-05 | C107: 9.491909403e-07 | D107: 0
A108: -4.07 | B108: 2.350656887e-05 | C108: 9.887184801e-07 | D108: 0
A109: -4.06 | B109: 2.453635797e-05 | C109: 1.029789098e-06 | D109: 0
A110: -4.05 | B110: 2.560881647e-05 | C110: 1.072458508e-06 | D110: 0
A111: -4.04 | B111: 2.672560072e-05 | C111: 1.116784245e-06 | D111: 0
A112: -4.03 | B112: 2.788842644e-05 | C112: 1.162825721e-06 | D112: 0
A113: -4.02 | B113: 2.909907071e-05 | C113: 1.210644271e-06 | D113: 0
A114: -4.01 | B114: 3.035937393e-05 | C114: 1.260303215e-06 | D114: 0
A115: -4 | B115: 3.167124183e-05 | C115: 1.311867907e-06 | D115: 0
A116: -3.99 | B116: 3.303664763e-05 | C116: 1.365405796e-06 | D116: 0
A117: -3.98 | B117: 3.445763412e-05 | C117: 1.420986486e-06 | D117: 0
A118: -3.97 | B118: 3.59363159e-05 | C118: 1.478681788e-06 | D118: 0
A119: -3.96 | B119: 3.747488169e-05 | C119: 1.538565788e-06 | D119: 0
A120: -3.95 | B120: 3.90755966e-05 | C120: 1.600714907e-06 | D120: 0
A121: -3.94 | B121: 4.074080456e-05 | C121: 1.665207961e-06 | D121: 0
A122: -3.93 | B122: 4.247293079e-05 | C122: 1.73212623e-06 | D122: 0
A123: -3.92 | B123: 4.427448431e-05 | C123: 1.801553523e-06 | D123: 0
A124: -3.91 | B124: 4.614806056e-05 | C124: 1.873576244e-06 | D124: 0
A125: -3.9 | B125: 4.809634402e-05 | C125: 1.948283461e-06 | D125: 0
A126: -3.89 | B126: 5.0122111e-05 | C126: 2.025766979e-06 | D126: 0
A127: -3.88 | B127: 5.22282324e-05 | C127: 2.106121406e-06 | D127: 0
A128: -3.87 | B128: 5.441767663e-05 | C128: 2.189444232e-06 | D128: 0
A129: -3.86 | B129: 5.669351253e-05 | C129: 2.275835901e-06 | D129: 0
A130: -3.85 | B130: 5.905891242e-05 | C130: 2.365399885e-06 | D130: 0
A131: -3.84 | B131: 6.151715518e-05 | C131: 2.458242764e-06 | D131: 0
A132: -3.83 | B132: 6.407162949e-05 | C132: 2.554474306e-06 | D132: 0
A133: -3.82 | B133: 6.672583703e-05 | C133: 2.654207541e-06 | D133: 0
A134: -3.81 | B134: 6.948339588e-05 | C134: 2.75755885e-06 | D134: 0
A135: -3.8 | B135: 7.234804393e-05 | C135: 2.864648045e-06 | D135: 0
A136: -3.79 | B136: 7.532364238e-05 | C136: 2.975598454e-06 | D136: 0
A137: -3.78 | B137: 7.841417938e-05 | C137: 3.090537005e-06 | D137: 0
A138: -3.77 | B138: 8.16237737e-05 | C138: 3.209594319e-06 | D138: 0
A139: -3.76 | B139: 8.49566785e-05 | C139: 3.332904795e-06 | D139: 0
A140: -3.75 | B140: 8.84172852e-05 | C140: 3.460606703e-06 | D140: 0
A141: -3.74 | B141: 9.201012747e-05 | C141: 3.592842273e-06 | D141: 0
A142: -3.73 | B142: 9.573988527e-05 | C142: 3.729757795e-06 | D142: 0
A143: -3.72 | B143: 9.961138898e-05 | C143: 3.871503707e-06 | D143: 0
A144: -3.71 | B144: 0.0001036296237 | C144: =IF(A144<E$7,B144-B143,0) -> 4.018234698e-06 | D144: =IF(A144>=E$7,B144-B143,0) -> 0
A145: -3.7 | B145: =NORMDIST(A145,0,1,1) -> 0.0001077997335 | C145: 4.170109803e-06 | D145: 0
A146: -3.69 | B146: 0.000112127026 | C146: 4.327292505e-06 | D146: 0
A147: -3.68 | B147: 0.0001166169768 | C147: 4.489950833e-06 | D147: 0
A148: -3.67 | B148: 0.0001212752343 | C148: 4.65825747e-06 | D148: 0
A149: -3.66 | B149: 0.0001261076241 | C149: 4.832389853e-06 | D149: 0
A150: -3.65 | B150: 0.0001311201544 | C150: 5.012530282e-06 | D150: 0
A151: -3.64 | B151: 0.0001363190204 | C151: 5.198866025e-06 | D151: 0
A152: -3.63 | B152: 0.0001417106099 | C152: 5.39158943e-06 | D152: 0
A153: -3.62 | B153: 0.0001473015079 | C153: 5.590898032e-06 | D153: 0
A154: -3.61 | B154: 0.0001530985026 | C154: 5.796994666e-06 | D154: 0
A155: -3.6 | B155: 0.0001591085902 | C155: 6.010087584e-06 | D155: 0
A156: -3.59 | B156: 0.0001653389807 | C156: 6.230390563e-06 | D156: 0
A157: -3.58 | B157: 0.0001717971037 | C157: 6.458123026e-06 | D157: 0
A158: -3.57 | B158: 0.0001784906139 | C158: 6.693510159e-06 | D158: 0
A159: -3.56 | B159: 0.0001854273969 | C159: 6.936783028e-06 | D159: 0
A160: -3.55 | B160: 0.0001926155756 | C160: 7.188178702e-06 | D160: 0
A161: -3.54 | B161: 0.000200063516 | C161: 7.447940372e-06 | D161: 0
A162: -3.53 | B162: 0.0002077798335 | C162: 7.716317473e-06 | D162: 0
A163: -3.52 | B163: 0.0002157733993 | C163: 7.993565814e-06 | D163: 0
A164: -3.51 | B164: 0.000224053347 | C164: 8.279947696e-06 | D164: 0
A165: -3.5 | B165: 0.000232629079 | C165: 8.575732044e-06 | D165: 0
A166: -3.49 | B166: 0.0002415102736 | C166: 8.881194532e-06 | D166: 0
A167: -3.48 | B167: 0.0002507068913 | C167: 9.196617713e-06 | D167: 0
A168: -3.47 | B168: 0.0002602291824 | C168: 9.522291147e-06 | D168: 0
A169: -3.46 | B169: 0.000270087694 | C169: 9.858511536e-06 | D169: 0
A170: -3.45 | B170: 0.0002802932768 | C170: 1.020558285e-05 | D170: 0
A171: -3.44 | B171: 0.0002908570933 | C171: 1.056381647e-05 | D171: 0
A172: -3.43 | B172: 0.0003017906246 | C172: 1.093353132e-05 | D172: 0
A173: -3.42 | B173: 0.0003131056786 | C173: 1.131505397e-05 | D173: 0
A174: -3.41 | B174: 0.0003248143974 | C174: 1.170871884e-05 | D174: 0
A175: -3.4 | B175: 0.0003369292657 | C175: 1.211486826e-05 | D175: 0
A176: -3.39 | B176: 0.0003494631183 | C176: 1.253385266e-05 | D176: 0
A177: -3.38 | B177: 0.000362429149 | C177: 1.29660307e-05 | D177: 0
A178: -3.37 | B178: 0.0003758409184 | C178: 1.341176937e-05 | D178: 0
A179: -3.36 | B179: 0.0003897123626 | C179: 1.387144418e-05 | D179: 0
A180: -3.35 | B180: 0.0004040578019 | C180: 1.434543928e-05 | D180: 0
A181: -3.34 | B181: 0.0004188919495 | C181: 1.483414759e-05 | D181: 0
A182: -3.33 | B182: 0.0004342299204 | C182: 1.533797093e-05 | D182: 0
A183: -3.32 | B183: 0.0004500872406 | C183: 1.585732021e-05 | D183: 0
A184: -3.31 | B184: 0.0004664798561 | C184: 1.639261552e-05 | D184: 0
A185: -3.3 | B185: 0.0004834241424 | C185: 1.694428628e-05 | D185: 0
A186: -3.29 | B186: 0.0005009369138 | C186: 1.75127714e-05 | D186: 0
A187: -3.28 | B187: 0.0005190354332 | C187: 1.809851942e-05 | D187: 0
A188: -3.27 | B188: 0.0005377374218 | C188: 1.870198862e-05 | D188: 0
A189: -3.26 | B189: 0.000557061069 | C189: 1.932364719e-05 | D189: 0
A190: -3.25 | B190: 0.0005770250424 | C190: 1.996397337e-05 | D190: 0
A191: -3.24 | B191: 0.0005976484979 | C191: 2.062345554e-05 | D191: 0
A192: -3.23 | B192: 0.0006189510904 | C192: 2.130259245e-05 | D192: 0
A193: -3.22 | B193: 0.0006409529837 | C193: 2.200189327e-05 | D193: 0
A194: -3.21 | B194: 0.0006636748614 | C194: 2.272187778e-05 | D194: 0
A195: -3.2 | B195: 0.0006871379379 | C195: 2.346307648e-05 | D195: 0
A196: -3.19 | B196: 0.0007113639686 | C196: 2.422603073e-05 | D196: 0
A197: -3.18 | B197: 0.0007363752616 | C197: 2.501129291e-05 | D197: 0
A198: -3.17 | B198: 0.0007621946881 | C198: 2.581942651e-05 | D198: 0
A199: -3.16 | B199: 0.0007888456944 | C199: 2.665100631e-05 | D199: 0
A200: -3.15 | B200: 0.0008163523128 | C200: 2.750661845e-05 | D200: 0
A201: -3.14 | B201: 0.0008447391735 | C201: 2.838686063e-05 | D201: 0
A202: -3.13 | B202: 0.0008740315156 | C202: 2.929234217e-05 | D202: 0
A203: -3.12 | B203: 0.0009042551998 | C203: 3.022368419e-05 | D203: 0
... 862 more rows

Sheet BetaDistPopProportion
A1: The Beta Distribution (Chapter 12)
A2: This spreadsheet computes how uncertainty about an estimate of a "population proportion" (e.g., "what percentage of customers want X?"). It uses a method called a beta distrubtion, which allows for establishing a "prior" uncertainty which is updated with new data. Enter values in the yellow "prior" fields to set the initial estimate. Enter "hits" and "misses" from a random sample in the yellow "Observations" fields.
B4: Prior | C4: w/Data | E4: Observations
A5: alpha | B5: 1 | C5: =B5+F5 -> 39 | E5: "Hits" | F5: 38
A6: beta | B6: 1 | C6: =B6+F6 -> 8 | E6: "Misses" | F6: 7
E7: Total Observations | F7: =F6+F5 -> 45
A8: P5 | B8: =_xlfn.BETA.INV(0.05,B5,B6) -> 0.05 | C8: =_xlfn.BETA.INV(0.05,C5,C6) -> 0.7330947923
A9: Median | B9: =_xlfn.BETA.INV(0.5,B5,B6) -> 0.5 | C9: =_xlfn.BETA.INV(0.5,C5,C6) -> 0.8344845986
A10: Mean | B10: =B5/(B5+B6) -> 0.5 | C10: =C5/(C5+C6) -> 0.829787234
A11: P95 | B11: =_xlfn.BETA.INV(0.95,B5,B6) -> 0.95 | C11: =_xlfn.BETA.INV(0.95,C5,C6) -> 0.9104069788
A13: Chart Distribution Calculations
A14: Population Proportion | B14: Prior | C14: w/Data | E14: Calcs for Chart Boundaries
A15: 0.001 | B15: =_xlfn.BETA.DIST(A15+A$15/2,B$5,B$6,1)-_xlfn.BETA.DIST(A15-A$15/2,B$5,B$6,1) -> 0.001 | C15: =_xlfn.BETA.DIST(A15+A$15/2,C$5,C$6,1)-_xlfn.BETA.DIST(A15-A$15/2,C$5,C$6,1) -> 3.905384972e-103 | E15: =E16 -> 0.05 | F15: 0
A16: =A15+A$15 -> 0.002 | B16: 0.001 | C16: 1.740985906e-94 | E16: =B8 -> 0.05 | F16: =VLOOKUP(E16,A$15:B$1013,2) -> 0.001
A17: 0.003 | B17: 0.001 | C17: 8.645996408e-89 | E17: =E18 -> 0.95 | F17: 0
A18: 0.004 | B18: 0.001 | C18: 1.550423683e-84 | E18: =B11 -> 0.95 | F18: =VLOOKUP(E18,A$15:B$1013,2) -> 0.001
A19: 0.005 | B19: 0.001 | C19: 3.856367015e-81 | E19: =E20 -> 0.7330947923 | F19: 0
A20: 0.006 | B20: 0.001 | C20: 2.583446454e-78 | E20: =C8 -> 0.7330947923 | F20: =VLOOKUP(E20,A$15:C$1013,3) -> 0.001510627469
A21: 0.007 | B21: 0.001 | C21: 6.791727228e-76 | E21: =E22 -> 0.9104069788 | F21: 0
A22: 0.008 | B22: 0.001 | C22: 8.856513019e-74 | E22: =C11 -> 0.9104069788 | F22: =VLOOKUP(E22,A$15:C$1013,3) -> 0.002772657142
A23: 0.009 | B23: 0.001 | C23: 6.694746185e-72
A24: 0.01 | B24: 0.001 | C24: 3.271451485e-70
A25: 0.011 | B25: 0.001 | C25: 1.118710226e-68
A26: 0.012 | B26: 0.001 | C26: 2.841216132e-67
A27: 0.013 | B27: 0.001 | C27: 5.61033199e-66
A28: 0.014 | B28: 0.001 | C28: 8.929069873e-65
A29: 0.015 | B29: 0.001 | C29: 1.178887237e-63
A30: 0.016 | B30: 0.001 | C30: 1.321779768e-62
A31: 0.017 | B31: 0.001 | C31: 1.283057578e-61
A32: 0.018 | B32: 0.001 | C32: 1.095764313e-60
A33: 0.019 | B33: 0.001 | C33: 8.345517005e-60
A34: 0.02 | B34: 0.001 | C34: 5.733937435e-59
A35: 0.021 | B35: 0.001 | C35: 3.589219106e-58
A36: 0.022 | B36: 0.001 | C36: 2.064395845e-57
A37: 0.023 | B37: 0.001 | C37: 1.099125369e-56
A38: 0.024 | B38: 0.001 | C38: 5.452241957e-56
A39: 0.025 | B39: 0.001 | C39: 2.534256633e-55
A40: 0.026 | B40: 0.001 | C40: 1.109331234e-54
A41: 0.027 | B41: 0.001 | C41: 4.593574436e-54
A42: 0.028 | B42: 0.001 | C42: 1.806565887e-53
A43: 0.029 | B43: 0.001 | C43: 6.772123745e-53
A44: 0.03 | B44: 0.001 | C44: 2.427517687e-52
A45: 0.031 | B45: 0.001 | C45: 8.345048093e-52
A46: 0.032 | B46: 0.001 | C46: 2.758467053e-51
A47: 0.033 | B47: 0.001 | C47: 8.78857414e-51
A48: 0.034 | B48: 0.001 | C48: 2.704753687e-50
A49: 0.035 | B49: 0.001 | C49: 8.056773468e-50
A50: 0.036 | B50: 0.001 | C50: 2.32708199e-49
A51: 0.037 | B51: 0.001 | C51: 6.528413729e-49
A52: 0.038 | B52: 0.001 | C52: 1.7816388e-48
A53: 0.039 | B53: 0.001 | C53: 4.736596304e-48
A54: 0.04 | B54: 0.001 | C54: 1.228343587e-47
A55: 0.041 | B55: 0.001 | C55: 3.111072424e-47
A56: 0.042 | B56: 0.001 | C56: 7.704227152e-47
A57: 0.043 | B57: 0.001 | C57: 1.867386286e-46
A58: 0.044 | B58: 0.001 | C58: 4.434569391e-46
A59: 0.045 | B59: 0.001 | C59: 1.032710205e-45
A60: 0.046 | B60: 0.001 | C60: 2.360405748e-45
A61: 0.047 | B61: 0.001 | C61: 5.299362894e-45
A62: 0.048 | B62: 0.001 | C62: 1.16954043e-44
A63: 0.049 | B63: 0.001 | C63: 2.53902589e-44
A64: 0.05 | B64: 0.001 | C64: 5.425835434e-44
A65: 0.051 | B65: 0.001 | C65: 1.142047069e-43
A66: 0.052 | B66: 0.001 | C66: 2.369048279e-43
A67: 0.053 | B67: 0.001 | C67: 4.845922629e-43
A68: 0.054 | B68: 0.001 | C68: 9.779539882e-43
A69: 0.055 | B69: 0.001 | C69: 1.94811255e-42
A70: 0.056 | B70: 0.001 | C70: 3.832358214e-42
A71: 0.057 | B71: 0.001 | C71: 7.448462006e-42
A72: 0.058 | B72: 0.001 | C72: 1.430861574e-41
A73: 0.059 | B73: 0.001 | C73: 2.717890024e-41
A74: 0.06 | B74: 0.001 | C74: 5.106618842e-41
A75: 0.061 | B75: 0.001 | C75: 9.494197534e-41
A76: 0.062 | B76: 0.001 | C76: 1.747248623e-40
A77: 0.063 | B77: 0.001 | C77: 3.183933886e-40
A78: 0.064 | B78: 0.001 | C78: 5.746731124e-40
A79: 0.065 | B79: =_xlfn.BETA.DIST(A79+A$15/2,B$5,B$6,1)-_xlfn.BETA.DIST(A79-A$15/2,B$5,B$6,1) -> 0.001 | C79: =_xlfn.BETA.DIST(A79+A$15/2,C$5,C$6,1)-_xlfn.BETA.DIST(A79-A$15/2,C$5,C$6,1) -> 1.027669782e-39
A80: =A79+A$15 -> 0.066 | B80: 0.001 | C80: 1.821313355e-39
A81: 0.067 | B81: 0.001 | C81: 3.199861105e-39
A82: 0.068 | B82: 0.001 | C82: 5.574485111e-39
A83: 0.069 | B83: 0.001 | C83: 9.631911671e-39
A84: 0.07 | B84: 0.001 | C84: 1.651036368e-38
A85: 0.071 | B85: 0.001 | C85: 2.808246194e-38
A86: 0.072 | B86: 0.001 | C86: 4.740694637e-38
A87: 0.073 | B87: 0.001 | C87: 7.944508701e-38
A88: 0.074 | B88: 0.001 | C88: 1.321894207e-37
A89: 0.075 | B89: 0.001 | C89: 2.18430765e-37
A90: 0.076 | B90: 0.001 | C90: 3.585072502e-37
A91: 0.077 | B91: 0.001 | C91: 5.845552554e-37
A92: 0.078 | B92: 0.001 | C92: 9.470440788e-37
A93: 0.079 | B93: 0.001 | C93: 1.524763604e-36
A94: 0.08 | B94: 0.001 | C94: 2.440004239e-36
A95: 0.081 | B95: 0.001 | C95: 3.881502704e-36
A96: 0.082 | B96: 0.001 | C96: 6.138942345e-36
A97: 0.083 | B97: 0.001 | C97: 9.654557556e-36
A98: 0.084 | B98: 0.001 | C98: 1.50999318e-35
A99: 0.085 | B99: 0.001 | C99: 2.348972513e-35
A100: 0.086 | B100: 0.001 | C100: 3.634927828e-35
A101: 0.087 | B101: 0.001 | C101: 5.596045507e-35
A102: 0.088 | B102: 0.001 | C102: 8.572058897e-35
A103: 0.089 | B103: 0.001 | C103: 1.306642176e-34
A104: 0.09 | B104: 0.001 | C104: 1.982181068e-34
A105: 0.091 | B105: 0.001 | C105: 2.992891933e-34
A106: 0.092 | B106: 0.001 | C106: 4.498256737e-34
A107: 0.093 | B107: 0.001 | C107: 6.730478262e-34
A108: 0.094 | B108: 0.001 | C108: 1.002623109e-33
A109: 0.095 | B109: 0.001 | C109: 1.4871675e-33
A110: 0.096 | B110: 0.001 | C110: 2.19660255e-33
A111: 0.097 | B111: 0.001 | C111: 3.231099414e-33
A112: 0.098 | B112: 0.001 | C112: 4.733616309e-33
A113: 0.099 | B113: 0.001 | C113: 6.907409757e-33
A114: 0.1 | B114: 0.001 | C114: 1.004040639e-32
A115: 0.101 | B115: 0.001 | C115: 1.453900579e-32
A116: 0.102 | B116: 0.001 | C116: 2.09748048e-32
A117: 0.103 | B117: 0.001 | C117: 3.014896804e-32
A118: 0.104 | B118: 0.001 | C118: 4.31806199e-32
A119: 0.105 | B119: 0.001 | C119: 6.16278344e-32
A120: 0.106 | B120: 0.001 | C120: 8.765272545e-32
A121: 0.107 | B121: 0.001 | C121: 1.242460193e-31
A122: 0.108 | B122: 0.001 | C122: 1.755316193e-31
A123: 0.109 | B123: 0.001 | C123: 2.471784327e-31
A124: 0.11 | B124: 0.001 | C124: 3.469556173e-31
A125: 0.111 | B125: 0.001 | C125: 4.854790603e-31
A126: 0.112 | B126: 0.001 | C126: 6.772121375e-31
A127: 0.113 | B127: 0.001 | C127: 9.418036846e-31
A128: 0.114 | B128: 0.001 | C128: 1.305871971e-30
A129: 0.115 | B129: 0.001 | C129: 1.805377041e-30
A130: 0.116 | B130: 0.001 | C130: 2.488767235e-30
A131: 0.117 | B131: 0.001 | C131: 3.421141856e-30
A132: 0.118 | B132: 0.001 | C132: 4.689744262e-30
A133: 0.119 | B133: 0.001 | C133: 6.411192669e-30
A134: 0.12 | B134: 0.001 | C134: 8.740975213e-30
A135: 0.121 | B135: 0.001 | C135: 1.188588849e-29
A136: 0.122 | B136: 0.001 | C136: 1.61202937e-29
A137: 0.123 | B137: 0.001 | C137: 2.180731301e-29
A138: 0.124 | B138: 0.001 | C138: 2.94264044e-29
A139: 0.125 | B139: 0.001 | C139: 3.960915429e-29
A140: 0.126 | B140: 0.001 | C140: 5.318563459e-29
A141: 0.127 | B141: 0.001 | C141: 7.12443121e-29
A142: 0.128 | B142: 0.001 | C142: 9.52093072e-29
A143: 0.129 | B143: =_xlfn.BETA.DIST(A143+A$15/2,B$5,B$6,1)-_xlfn.BETA.DIST(A143-A$15/2,B$5,B$6,1) -> 0.001 | C143: =_xlfn.BETA.DIST(A143+A$15/2,C$5,C$6,1)-_xlfn.BETA.DIST(A143-A$15/2,C$5,C$6,1) -> 1.269398167e-28
A144: =A143+A$15 -> 0.13 | B144: 0.001 | C144: 1.688577951e-28
A145: 0.131 | B145: 0.001 | C145: 2.241115918e-28
A146: 0.132 | B146: 0.001 | C146: 2.967852498e-28
A147: 0.133 | B147: 0.001 | C147: 3.921656795e-28
A148: 0.134 | B148: 0.001 | C148: 5.170830464e-28
A149: 0.135 | B149: 0.001 | C149: 6.803436076e-28
A150: 0.136 | B150: 0.001 | C150: 8.932790659e-28
A151: 0.137 | B151: 0.001 | C151: 1.170442513e-27
A152: 0.138 | B152: 0.001 | C152: 1.530488462e-27
A153: 0.139 | B153: 0.001 | C153: 1.997283656e-27
A154: 0.14 | B154: 0.001 | C154: 2.601306681e-27
A155: 0.141 | B155: 0.001 | C155: 3.381408364e-27
A156: 0.142 | B156: 0.001 | C156: 4.387022156e-27
A157: 0.143 | B157: 0.001 | C157: 5.680934773e-27
A158: 0.144 | B158: 0.001 | C158: 7.342753268e-27
A159: 0.145 | B159: 0.001 | C159: 9.47323642e-27
A160: 0.146 | B160: 0.001 | C160: 1.219969704e-26
A161: 0.147 | B161: 0.001 | C161: 1.568272916e-26
A162: 0.148 | B162: 0.001 | C162: 2.012457163e-26
A163: 0.149 | B163: 0.001 | C163: 2.577948998e-26
A164: 0.15 | B164: 0.001 | C164: 3.296664357e-26
A165: 0.151 | B165: 0.001 | C165: 4.208600866e-26
A166: 0.152 | B166: 0.001 | C166: 5.363805354e-26
A167: 0.153 | B167: 0.001 | C167: 6.824801361e-26
A168: 0.154 | B168: 0.001 | C168: 8.669579797e-26
A169: 0.155 | B169: 0.001 | C169: 1.099527807e-25
A170: 0.156 | B170: 0.001 | C170: 1.392269968e-25
A171: 0.157 | B171: 0.001 | C171: 1.76018585e-25
A172: 0.158 | B172: 0.001 | C172: 2.221877043e-25
A173: 0.159 | B173: 0.001 | C173: 2.800376194e-25
A174: 0.16 | B174: 0.001 | C174: 3.524162005e-25
A175: 0.161 | B175: 0.001 | C175: 4.428397563e-25
A176: 0.162 | B176: 0.001 | C176: 5.556439118e-25
A177: 0.163 | B177: 0.001 | C177: 6.961671978e-25
A178: 0.164 | B178: 0.001 | C178: 8.709741548e-25
A179: 0.165 | B179: 0.001 | C179: 1.088126112e-24
A180: 0.166 | B180: 0.001 | C180: 1.357509409e-24
A181: 0.167 | B181: 0.001 | C181: 1.691232763e-24
A182: 0.168 | B182: 0.001 | C182: 2.104107734e-24
A183: 0.169 | B183: 0.001 | C183: 2.614228985e-24
A184: 0.17 | B184: 0.001 | C184: 3.243674197e-24
A185: 0.171 | B185: 0.001 | C185: 4.019347335e-24
A186: 0.172 | B186: 0.001 | C186: 4.973993408e-24
A187: 0.173 | B187: 0.001 | C187: 6.14741819e-24
A188: 0.174 | B188: 0.001 | C188: 7.587952634e-24
A189: 0.175 | B189: 0.001 | C189: 9.354209042e-24
A190: 0.176 | B190: 0.001 | C190: 1.151718478e-23
A191: 0.177 | B191: 0.001 | C191: 1.416277952e-23
A192: 0.178 | B192: 0.001 | C192: 1.739480395e-23
A193: 0.179 | B193: 0.001 | C193: 2.133857213e-23
A194: 0.18 | B194: 0.001 | C194: 2.614518591e-23
A195: 0.181 | B195: 0.001 | C195: 3.199663952e-23
A196: 0.182 | B196: 0.001 | C196: 3.911189483e-23
A197: 0.183 | B197: 0.001 | C197: 4.775410443e-23
A198: 0.184 | B198: 0.001 | C198: 5.823919048e-23
A199: 0.185 | B199: 0.001 | C199: 7.094602363e-23
A200: 0.186 | B200: 0.001 | C200: 8.632848808e-23
A201: 0.187 | B201: 0.001 | C201: 1.049297684e-22
A202: 0.188 | B202: 0.001 | C202: 1.273992499e-22
... 811 more rows

Sheet Validation (hidden)
A1: Normal
A2: Binary
A3: Uniform
A4: Lognorm
A5: Triangular
A6: Constant
